bitfinex-derivatives/quotes_BTCF0:USTF0_20210707
["timestamp","ask_amount","ask_price","bid_price","bid_amount"]
[1625665929633,5.4895722,34713.0,34712.0,0.24057544]
[1625665929874,5.5029183,34713.0,34712.0,0.24057544]
[1625665934809,5.4895722,34713.0,34712.0,0.24057544]
[1625665940938,4.14739228,34713.0,34712.0,0.24057544]
[1625665941240,5.49105354,34713.0,34712.0,0.24057544]
[1625665942622,5.50440013,34713.0,34712.0,0.24057544]
[1625665947069,5.50440013,34713.0,34711.0,0.9517]
[1625665947368,4.7146652,34712.0,34711.0,0.9517]
[1625665948514,4.7146652,34712.0,34711.0,0.95649871]
[1625665949415,8.2362652,34712.0,34711.0,0.95649871]
[1625665950134,8.2362652,34712.0,34711.0,4.46409871]
[1625665955123,8.2362652,34712.0,34711.0,4.54864019]
[1625665955665,8.2362652,34712.0,34711.0,4.7177225]
[1625665955844,8.2362652,34712.0,34711.0,5.05588594]
[1625665956144,8.2362652,34712.0,34711.0,4.97134446]
[1625665956447,6.89310367,34712.0,34711.0,5.30949882]
[1625665957109,8.240186,34712.0,34711.0,5.6479596]
[1625665961009,8.240186,34712.0,34711.0,6.66337441]
[1625665961972,8.240186,34712.0,34711.0,5.6479596]
[1625665962752,8.240186,34712.0,34711.0,6.66341722]
[1625665963293,8.240186,34712.0,34711.0,5.6479596]
[1625665963474,8.240186,34712.0,34711.0,6.6634834]
[1625665963595,8.240186,34712.0,34711.0,3.1558834]
[1625665964257,8.240186,34712.0,34711.0,1.46373538]
[1625665964496,8.240186,34712.0,34711.0,1.80229992]
[1625665964739,8.240186,34712.0,34711.0,1.46434729]
[1625665966179,9.75659598,34712.0,34711.0,1.21043578]
[1625665966902,9.75659598,34712.0,34711.0,1.04115174]
[1625665967204,9.75659598,34712.0,34711.0,1.21046764]
[1625665967384,9.75659598,34712.0,34711.0,0.95649871]
[1625665968106,15.93429598,34712.0,34711.0,0.95649871]
[1625665968224,6.23499598,34712.0,34711.0,0.95649871]
[1625665968524,4.718586,34712.0,34711.0,1.73917066]
[1625665968763,4.718586,34712.0,34711.0,3.43222034]
[1625665969124,3.37150367,34712.0,34711.0,4.61741481]
[1625665969732,3.37150367,34712.0,34711.0,4.85799025]
[1625665970150,2.19621635,34712.0,34711.0,6.2124299]
[1625665970511,2.1828683,34712.0,34711.0,6.2124299]
[1625665978086,3.36495136,34712.0,34711.0,6.2124299]
[1625665979052,4.71537137,34712.0,34711.0,4.85799025]
[1625665979289,4.71537137,34712.0,34711.0,6.21391288]
[1625665980432,3.36495136,34712.0,34711.0,6.21391288]
[1625665980673,2.1828683,34712.0,34711.0,6.21391288]
[1625665981694,2.1828683,34712.0,34711.0,7.73922419]
[1625665982356,2.1828683,34712.0,34711.0,6.21391288]
[1625665983737,2.1828683,34712.0,34711.0,7.73915449]
[1625665986989,1.17545519,34712.0,34711.0,7.73915449]
[1625665987281,1.17545519,34712.0,34711.0,6.21391288]
[1625665987402,2.18942094,34712.0,34711.0,6.21391288]
[1625665987703,1.17545519,34712.0,34711.0,6.21391288]
[1625665987945,2.18930314,34712.0,34711.0,6.21391288]
[1625665995761,0.18770314,34712.0,34711.0,6.21391288]
[1625665996000,0.084631,34712.0,34711.0,8.73830331]
[1625665996121,0.40411165,34713.0,34711.0,8.73830331]
[1625665996240,1.52027074,34718.0,34711.0,8.73830331]
[1625665996241,2.70333565,34718.0,34711.0,8.73830331]
[1625665996360,2.70333565,34718.0,34712.0,1.0]
[1625665996481,1.52027074,34718.0,34717.0,2.54055754]
[1625665996842,1.52027074,34718.0,34717.0,2.54536909]
[1625665997027,1.53357436,34718.0,34717.0,2.54536909]
[1625665997143,2.71598666,34718.0,34717.0,2.54536909]
[1625665997444,2.71598666,34718.0,34717.0,1.19040507]
[1625665997863,2.9565621,34718.0,34717.0,1.43098051]
[1625665998166,4.30731592,34718.0,34717.0,1.43098051]
[1625665998403,4.30731592,34718.0,34717.0,0.24538699]
[1625666003512,4.30731592,34718.0,34717.0,4.42998699]
[1625666003694,4.30731592,34718.0,34717.0,4.71739699]
[1625666004836,4.30731592,34718.0,34717.0,4.42998699]
[1625666009344,2.78704518,34718.0,34717.0,4.42998699]
[1625666009463,2.78704518,34718.0,34717.0,4.68352699]
[1625666012593,2.78704518,34718.0,34717.0,5.86925578]
[1625666019023,2.78704518,34718.0,34717.0,5.94085578]
[1625666023712,2.54646974,34718.0,34717.0,5.94085578]
[1625666023955,1.19571592,34718.0,34717.0,7.60699112]
[1625666024853,1.1824123,34718.0,34717.0,7.60699112]
[1625666024974,1.18615326,34719.0,34717.0,7.60699112]
[1625666025219,1.18615326,34719.0,34718.0,2.53716638]
[1625666025397,1.18615326,34719.0,34718.0,2.54198661]
[1625666026119,1.01682046,34719.0,34718.0,3.55678321]
[1625666026541,2.20351392,34719.0,34718.0,3.55678321]
[1625666027199,2.20351392,34719.0,34718.0,3.64228321]
[1625666027440,2.20351392,34719.0,34718.0,3.55678321]
[1625666031771,0.24057544,34722.0,34718.0,0.00482023]
[1625666032071,0.24057544,34722.0,34721.0,3.5515584]
[1625666032189,0.24057544,34722.0,34721.0,3.79213384]
[1625666032310,3.80011374,34722.0,34721.0,3.79213384]
[1625666032435,3.80011374,34722.0,34721.0,8.21204981]
[1625666032556,3.80011374,34722.0,34721.0,6.85907518]
[1625666032735,3.81340573,34722.0,34721.0,6.85907518]
[1625666033216,3.80011374,34722.0,34721.0,6.85907518]
[1625666033579,3.80011374,34722.0,34721.0,8.21173607]
[1625666034302,3.80011374,34722.0,34721.0,6.85907518]
[1625666034481,3.80011374,34722.0,34721.0,8.21145178]
[1625666035443,2.44412336,34722.0,34721.0,8.21145178]
[1625666037366,0.44262336,34722.0,34721.0,8.21145178]
[1625666037486,0.44262336,34722.0,34721.0,9.29805178]
[1625666037609,1.355453,34725.0,34721.0,9.29805178]
[1625666037848,1.35485705,34729.0,34724.0,1.34954098]
[1625666038091,1.35485705,34729.0,34727.0,1.34940729]
[1625666038209,1.35485705,34729.0,34728.0,0.72172632]
[1625666038631,1.35480236,34730.0,34728.0,5.71092632]
[1625666038751,1.35480236,34730.0,34728.0,5.71574122]
[1625666038873,1.35479223,34729.0,34728.0,5.71574122]
[1625666038992,1.35479223,34729.0,34728.0,5.71092632]
[1625666039113,1.35478997,34730.0,34728.0,5.71092632]
[1625666039233,1.35478997,34730.0,34728.0,5.71574111]
[1625666039533,1.35478997,34730.0,34729.0,0.00481479]
[1625666041457,1.35478997,34730.0,34729.0,1.00481479]
[1625666041755,1.35478997,34730.0,34729.0,0.00481479]
[1625666041999,1.35416036,34731.0,34729.0,0.00481479]
[1625666044765,1.35309551,34732.0,34729.0,0.00481479]
[1625666046208,1.35309551,34732.0,34728.0,5.95150176]
[1625666047107,1.52227548,34735.0,34728.0,5.95150176]
[1625666047352,0.01329354,34734.0,34728.0,5.95150176]
[1625666048188,0.01329354,34734.0,34733.0,0.08707239]
[1625666048368,0.01329354,34734.0,34733.0,5.02227239]
[1625666048488,1.36574676,34734.0,34733.0,5.02227239]
[1625666049090,2.88722055,34734.0,34733.0,5.02227239]
[1625666055764,3.56347963,34734.0,34733.0,5.02227239]
[1625666057632,4.74667864,34734.0,34733.0,5.02227239]
[1625666062736,3.22520485,34734.0,34733.0,5.02227239]
[1625666063454,3.22520485,34734.0,34733.0,5.02708207]
[1625666063755,3.22520485,34734.0,34733.0,5.02227239]
[1625666065739,4.74635357,34734.0,34733.0,5.02227239]
[1625666065860,5.01146357,34734.0,34733.0,5.02227239]
[1625666067482,5.01146357,34734.0,34733.0,5.02708456]
[1625666067602,6.02577136,34734.0,34733.0,5.02708456]
[1625666069946,5.76066136,34734.0,34733.0,5.02708456]
[1625666070065,5.76066136,34734.0,34733.0,5.35109456]
[1625666070186,4.23951264,34734.0,34733.0,5.35109456]
[1625666074994,4.23951264,34734.0,34733.0,5.02708456]
[1625666077159,4.23951264,34734.0,34733.0,5.09868456]
[1625666077280,4.23951264,34734.0,34733.0,5.17028456]
[1625666077940,4.23951264,34734.0,34733.0,5.84156341]
[1625666081004,4.23951264,34734.0,34733.0,5.17028456]
[1625666081787,4.23951264,34734.0,34733.0,5.84194128]
[1625666082931,8.70861264,34734.0,34733.0,5.84194128]
[1625666083832,8.70861264,34734.0,34733.0,6.84943382]
[1625666084312,8.70861264,34734.0,34733.0,1.91423382]
[1625666085216,8.70861264,34734.0,34733.0,0.90674128]
[1625666085877,9.21667346,34734.0,34733.0,1.41073484]
[1625666086779,9.21667346,34734.0,34733.0,4.92883484]
[1625666087739,9.21667346,34734.0,34733.0,5.93688852]
[1625666087978,9.21667346,34734.0,34733.0,4.92883484]
[1625666088279,9.21667346,34734.0,34733.0,5.93685441]
[1625666093686,4.74757346,34734.0,34733.0,5.93685441]
[1625666094048,4.74757346,34734.0,34733.0,7.11307792]
[1625666098549,4.74757346,34734.0,34733.0,3.59497792]
[1625666098671,5.00929346,34734.0,34733.0,3.59497792]
[1625666098790,5.00929346,34734.0,34733.0,2.41875441]
[1625666099031,6.53454606,34734.0,34733.0,0.73907812]
[1625666099331,6.53454606,34734.0,34733.0,0.23508456]
[1625666099513,6.53454606,34734.0,34733.0,0.23027239]
[1625666099993,8.2294245,34734.0,34733.0,0.23027239]
[1625666100354,8.26337938,34734.0,34733.0,0.23027239]
[1625666100594,8.50395482,34734.0,34733.0,0.23027239]
[1625666103301,8.46999994,34734.0,34733.0,0.23027239]
[1625666103481,6.7751215,34734.0,34733.0,4.66837239]
[1625666105586,2.04084158,34734.0,34733.0,4.66837239]
[1625666105705,1.77912158,34734.0,34733.0,4.66837239]
[1625666106007,6.52421377,34734.0,34733.0,4.66837239]
[1625666106187,6.52421377,34734.0,34733.0,0.23027239]
[1625666106547,8.21866586,34734.0,34733.0,0.23027239]
[1625666109073,8.21866586,34734.0,34733.0,4.45877239]
[1625666109314,6.52421377,34734.0,34733.0,4.45877239]
[1625666112376,6.52421377,34734.0,34733.0,0.23027239]
[1625666116647,6.52421377,34734.0,34733.0,0.81959516]
[1625666116889,6.52421377,34734.0,34733.0,0.98756255]
[1625666117188,6.52421377,34734.0,34733.0,2.6672333]
[1625666117189,4.99896117,34734.0,34733.0,2.6672333]
[1625666117307,4.98566763,34734.0,34733.0,2.6720473]
[1625666117671,4.98566763,34734.0,34733.0,3.84723315]
[1625666119775,8.61716763,34734.0,34733.0,3.84723315]
[1625666122480,8.61716763,34734.0,34733.0,7.90863315]
[1625666133539,7.26149962,34734.0,34733.0,7.90863315]
[1625666139007,3.87207544,34734.0,34733.0,4.54961639]
[1625666139307,7.25829998,34734.0,34733.0,7.90956473]
[1625666140631,3.62679998,34734.0,34733.0,7.90956473]
[1625666144901,2.4416891,34734.0,34733.0,9.25279113]
[1625666145561,2.4416891,34734.0,34733.0,7.90956473]
[1625666145805,3.62654729,34734.0,34733.0,7.90956473]
[1625666146285,2.4416891,34734.0,34733.0,7.90956473]
[1625666146706,2.45499118,34734.0,34733.0,7.90956473]
[1625666147307,2.45499118,34734.0,34733.0,9.2528388]
[1625666147607,2.45499118,34734.0,34733.0,7.90956473]
[1625666148394,2.45499118,34734.0,34733.0,9.25220604]
[1625666148875,2.4416891,34734.0,34733.0,9.25220604]
[1625666149233,2.20111366,34734.0,34733.0,9.16513365]
[1625666150917,2.20111366,34734.0,34733.0,9.88685997]
[1625666151521,1.18528015,34734.0,34733.0,9.88685997]
[1625666152478,1.18528015,34734.0,34733.0,9.16513365]
[1625666153018,1.18528015,34734.0,34733.0,9.88685997]
[1625666153681,2.20059,34734.0,34733.0,9.88685997]
[1625666154102,0.24057544,34737.0,34733.0,5.18427032]
[1625666154343,2.19986088,34734.0,34733.0,6.52620121]
[1625666154464,2.19986088,34734.0,34733.0,6.52138721]
[1625666154707,1.18460554,34734.0,34733.0,9.88092363]
[1625666155370,2.19984537,34734.0,34733.0,9.88092363]
[1625666155852,1.18460554,34734.0,34733.0,9.88092363]
[1625666159698,2.1997575,34734.0,34733.0,9.88092363]
[1625666162222,1.18460554,34734.0,34733.0,9.88092363]
[1625666165112,0.84628699,34734.0,34733.0,9.88092363]
[1625666165711,0.16936189,34735.0,34733.0,11.38874547]
[1625666166012,1.01565782,34736.0,34734.0,1.17243555]
[1625666166132,0.16935592,34736.0,34734.0,6.19715931]
[1625666166312,0.33854265,34737.0,34735.0,6.19584297]
[1625666166433,0.33854265,34737.0,34735.0,6.20065099]
[1625666166552,0.33854265,34737.0,34736.0,6.19699899]
[1625666166676,0.33854265,34737.0,34736.0,6.20180695]
[1625666167274,0.33854265,34737.0,34736.0,6.44238239]
[1625666167519,0.50772023,34738.0,34736.0,6.44238239]
[1625666167520,0.33851401,34738.0,34736.0,6.44238239]
[1625666167757,0.84619686,34739.0,34737.0,6.19302776]
[1625666167936,0.84619686,34739.0,34738.0,4.68656641]
[1625666168058,0.84619686,34739.0,34738.0,4.69137405]
[1625666168177,0.06035176,44249.0,34738.0,0.00480764]
[1625666168480,1.015474,34741.0,34740.0,5.70206043]
[1625666168780,2.20033324,34741.0,34740.0,9.05045195]
[1625666168902,2.20033324,34741.0,34740.0,9.0552597]
[1625666169321,2.20033324,34741.0,34740.0,9.53641058]
[1625666169500,2.20033324,34741.0,34740.0,8.02440822]
[1625666169680,2.20033324,34741.0,34740.0,9.53638947]
[1625666173108,1.18485924,34741.0,34740.0,9.53638947]
[1625666173590,0.33851818,34741.0,34740.0,9.53638947]
[1625666173709,0.33851818,34741.0,34740.0,9.77147947]
[1625666173831,0.84621012,34741.0,34740.0,9.77147947]
[1625666174318,0.33851818,34741.0,34740.0,9.77147947]
[1625666174554,0.84624381,34741.0,34740.0,9.77147947]
[1625666174853,0.33851818,34741.0,34740.0,9.77147947]
[1625666175520,0.84623071,34741.0,34740.0,9.77147947]
[1625666175636,0.84623071,34741.0,34740.0,9.53638947]
[1625666175997,0.33851818,34741.0,34740.0,9.53638947]
[1625666176178,0.84623051,34741.0,34740.0,9.53638947]
[1625666176840,0.08475864,34741.0,34740.0,11.04262528]
[1625666177016,0.08475864,34741.0,34740.0,9.53638947]
[1625666177256,0.42318301,34741.0,34740.0,9.53638947]
[1625666177976,0.33842437,34741.0,34740.0,9.53638947]
[1625666178758,0.42314188,34741.0,34740.0,9.53638947]
[1625666181163,0.08471751,34741.0,34740.0,9.53638947]
[1625666181822,0.42297127,34741.0,34740.0,9.53638947]
[1625666182065,0.84554939,34741.0,34740.0,9.53638947]
[1625666182788,0.42294199,34741.0,34740.0,9.53638947]
[1625666183027,0.33825376,34741.0,34740.0,9.53638947]
[1625666183447,0.33825376,34741.0,34740.0,6.188019]
[1625666183689,0.33825376,34741.0,34740.0,9.52893512]
[1625666185370,0.4229356,34741.0,34740.0,9.52893512]
[1625666185611,0.33825376,34741.0,34740.0,9.52893512]
[1625666185972,0.42293035,34741.0,34740.0,9.52893512]
[1625666186994,0.08467659,34741.0,34740.0,9.52893512]
[1625666187895,0.08466672,34742.0,34740.0,9.52893512]
[1625666188137,0.08466672,34742.0,34741.0,4.67931948]
[1625666188376,0.42282596,34743.0,34741.0,4.89998948]
[1625666188619,0.42282596,34743.0,34742.0,4.67304552]
[1625666188738,0.42282596,34743.0,34742.0,4.67785428]
[1625666189338,0.08466607,34743.0,34742.0,4.67785428]
[1625666189458,0.08466607,34743.0,34742.0,4.91842972]
[1625666190601,0.84521084,34743.0,34742.0,3.58327386]
[1625666190841,0.33811813,34743.0,34742.0,3.58327386]
[1625666191744,0.08465409,34743.0,34742.0,4.9177493]
[1625666192347,0.33812248,34743.0,34742.0,4.9177493]
[1625666193185,0.42277395,34743.0,34742.0,4.9177493]
[1625666193727,0.08465147,34743.0,34742.0,4.9177493]
[1625666195052,0.08464505,34744.0,34742.0,4.9177493]
[1625666195171,0.08464505,34744.0,34742.0,5.2569293]
[1625666195291,0.42271791,34744.0,34743.0,4.67131962]
[1625666195530,0.42271791,34744.0,34743.0,4.67612826]
[1625666195711,0.08464505,34744.0,34743.0,4.67612826]
[1625666195831,0.08464505,34744.0,34743.0,8.63782826]
[1625666199680,0.42271772,34745.0,34743.0,8.63782826]
[1625666199983,0.42271772,34745.0,34744.0,4.67561302]
[1625666200881,0.08463591,34745.0,34744.0,4.67561302]
[1625666201302,0.33806676,34745.0,34744.0,3.34109746]
[1625666202026,0.42270524,34745.0,34744.0,4.67564831]
[1625666202265,0.33806676,34745.0,34744.0,4.67564831]
[1625666202865,0.33806676,34745.0,34744.0,3.34109746]
[1625666203349,0.33806676,34745.0,34744.0,4.6758798]
[1625666204131,0.08464677,34745.0,34744.0,4.6758798]
[1625666212007,0.08466866,34746.0,34744.0,4.6758798]
[1625666212254,0.08466866,34746.0,34745.0,4.66548709]
[1625666212428,0.08466866,34746.0,34745.0,4.67029157]
[1625666212548,0.42288447,34746.0,34745.0,4.67029157]
[1625666213691,0.08466866,34746.0,34745.0,4.91086701]
[1625666213871,0.08467492,34747.0,34745.0,4.91086701]
[1625666214110,0.08467492,34747.0,34746.0,2.99778962]
[1625666214234,0.08467492,34747.0,34746.0,4.66803269]
[1625666215191,0.33825369,34747.0,34746.0,4.66803269]
[1625666215672,0.4229439,34747.0,34746.0,4.66803269]
[1625666216575,0.33825369,34747.0,34746.0,4.66803269]
[1625666217775,0.42295018,34747.0,34746.0,4.66803269]
[1625666218558,0.33825369,34747.0,34746.0,4.66803269]
[1625666219520,0.08471652,34747.0,34746.0,4.66803269]
[1625666223428,0.08472768,34748.0,34746.0,6.16773419]
[1625666223667,0.08472768,34748.0,34747.0,6.1669748]
[1625666223788,0.08472768,34748.0,34747.0,6.1717787]
[1625666223907,0.08473872,34749.0,34747.0,6.1717787]
[1625666224148,0.42318601,34750.0,34748.0,6.16334704]
[1625666224389,0.42318519,34749.0,34748.0,0.00480396]
[1625666224510,0.08473852,34749.0,34748.0,4.00337155]
[1625666224628,0.08473852,34749.0,34748.0,4.66499552]
[1625666224751,0.3385752,34749.0,34748.0,6.16517503]
[1625666224872,0.3385752,34749.0,34748.0,6.16997903]
[1625666224993,0.42334527,34749.0,34748.0,6.16997903]
[1625666225472,0.3385752,34749.0,34748.0,6.16997903]
[1625666225713,0.3385752,34749.0,34748.0,6.41055447]
[1625666225954,0.42333289,34749.0,34748.0,6.41055447]
[1625666229144,0.42333289,34749.0,34748.0,10.99805447]
[1625666229444,0.08475769,34749.0,34748.0,10.99805447]
[1625666230586,0.42327143,34750.0,34748.0,10.99805447]
[1625666230827,0.42327143,34750.0,34749.0,6.16458944]
[1625666230949,0.42327143,34750.0,34749.0,6.46187944]
[1625666231072,0.42327143,34750.0,34749.0,6.46668575]
[1625666231191,0.42327143,34750.0,34749.0,7.46668575]
[1625666231432,0.08474707,34750.0,34749.0,7.46668575]
[1625666231729,0.42325418,34751.0,34750.0,0.24057544]
[1625666231851,0.50766846,34752.0,34750.0,0.24057544]
[1625666231852,0.42314882,34752.0,34750.0,0.24057544]
[1625666232090,0.42314882,34752.0,34751.0,4.66638556]
[1625666232390,0.24014882,34752.0,34751.0,5.66638556]
[1625666232515,0.08473124,34752.0,34751.0,5.66638556]
[1625666232633,0.08473124,34752.0,34751.0,4.66638556]
[1625666232992,0.50754181,34753.0,34751.0,4.66638556]
[1625666233231,0.50754181,34753.0,34752.0,4.66227153]
[1625666233476,0.50754181,34753.0,34752.0,4.66707733]
[1625666233713,0.50754181,34753.0,34752.0,4.90765277]
[1625666234016,0.67666604,34754.0,34752.0,4.90765277]
[1625666234017,1.18413705,34754.0,34752.0,4.90765277]
[1625666234255,1.18413705,34754.0,34753.0,4.66037548]
[1625666234495,1.18413705,34754.0,34753.0,4.66518119]
[1625666235877,1.18413705,34754.0,34753.0,8.41868119]
[1625666238101,0.50747101,34754.0,34753.0,8.41868119]
[1625666238884,1.18350822,34755.0,34753.0,8.41868119]
[1625666239006,0.50721575,34755.0,34754.0,4.67071671]
[1625666239185,0.50721575,34755.0,34754.0,4.67552242]
[1625666239305,0.50721575,34755.0,34754.0,0.00480571]
[1625666239547,0.50721575,34755.0,34754.0,4.67562655]
[1625666239666,0.50721575,34755.0,34754.0,4.67082084]
[1625666239846,0.50721575,34755.0,34754.0,4.91139628]
[1625666246395,0.08466204,34755.0,34754.0,4.91139628]
[1625666253185,0.08465342,34756.0,34754.0,4.91139628]
[1625666253484,0.08465342,34756.0,34755.0,4.67012102]
[1625666253784,0.08465342,34756.0,34755.0,4.91069646]
[1625666254870,0.08465434,34757.0,34755.0,4.91069646]
[1625666255115,0.08465434,34757.0,34756.0,4.65911932]
[1625666255230,0.08465434,34757.0,34756.0,4.99182932]
[1625666255352,0.08465166,34758.0,34756.0,4.99663557]
[1625666255531,0.08465166,34758.0,34757.0,4.65978128]
[1625666255651,0.08465166,34758.0,34757.0,4.66458747]
[1625666255892,0.08465166,34758.0,34757.0,4.90516291]
[1625666256073,0.08463699,34759.0,34757.0,4.90516291]
[1625666256254,0.29650629,34761.0,34758.0,0.5]
[1625666256377,0.08463154,34761.0,34758.0,5.15561191]
[1625666256493,0.38811182,34766.0,34758.0,5.16041739]
[1625666256615,0.38811182,34766.0,34760.0,3.48518428]
[1625666256732,0.50687184,34769.0,34761.0,0.5]
[1625666256913,0.559212,34775.0,34765.0,5.30951274]
[1625666257038,0.058512,34775.0,34774.0,4.2784]
[1625666257337,4.2705,34803.0,34774.0,8.88628553]
[1625666257338,1.01341163,34781.0,34774.0,8.88628553]
[1625666257457,1.01341163,34781.0,34774.0,9.88628553]
[1625666257575,1.01341163,34781.0,34774.0,8.40172088]
[1625666257698,1.3510911,34789.0,34784.0,4.6929]
[1625666257874,1.35107763,34788.0,34787.0,0.24057544]
[1625666258476,1.34837215,34791.0,34787.0,0.24057544]
[1625666258776,1.34838273,34792.0,34787.0,0.24057544]
[1625666259017,1.34839294,34791.0,34787.0,0.24057544]
[1625666259916,1.34839294,34791.0,34790.0,0.48115088]
[1625666260459,1.34670271,34792.0,34790.0,0.48115088]
[1625666260940,1.34668292,34793.0,34790.0,0.48115088]
[1625666262140,0.24057544,34795.0,34790.0,0.48115088]
[1625666262141,1.58572607,34795.0,34790.0,0.48115088]
[1625666262862,3.5668,34794.0,34790.0,0.48115088]
[1625666263951,3.5668,34794.0,34793.0,0.2914289]
[1625666265991,3.5668,34794.0,34793.0,0.0719089]
[1625666267674,0.24057544,34795.0,34793.0,0.0719089]
[1625666267797,0.24057544,34795.0,34793.0,0.4149689]
[1625666274282,0.24057544,34795.0,34793.0,0.0719089]
[1625666274404,0.51183544,34795.0,34793.0,0.0719089]
[1625666276808,0.24057544,34795.0,34793.0,0.0719089]
[1625666279032,4.4595,34794.0,34793.0,0.0719089]
[1625666279513,4.73389,34794.0,34793.0,0.0719089]
[1625666285398,4.74712986,34794.0,34793.0,0.0719089]
[1625666286300,4.47273986,34794.0,34793.0,0.0719089]
[1625666286422,0.01323986,34794.0,34793.0,0.0719089]
[1625666286601,1.170728,34804.0,34793.0,0.3556589]
[1625666286782,1.170728,34804.0,34793.0,0.86047751]
[1625666286903,1.17033918,34818.0,34794.0,0.057]
[1625666287083,1.00304631,34821.0,34797.0,1.03040219]
[1625666287202,1.00304631,34821.0,34819.0,3.8528]
[1625666287321,1.33733936,34824.0,34819.0,3.8528]
[1625666287322,1.00298501,34824.0,34819.0,3.8528]
[1625666287501,0.01319815,34820.0,34819.0,0.2607]
[1625666287801,1.05004068,34823.0,34819.0,0.2607]
[1625666288041,1.24353746,34823.0,34821.0,0.24057544]
[1625666288161,0.24057544,34823.0,34821.0,0.24057544]
[1625666288342,0.01319685,34822.0,34821.0,0.24057544]
[1625666289905,0.24057544,34823.0,34821.0,0.24057544]
[1625666293568,0.24057544,34823.0,34821.0,7.544e-05]
[1625666293689,0.24057544,34823.0,34818.0,0.24057544]
[1625666293690,0.48951544,34823.0,34818.0,0.24057544]
[1625666294050,0.24057544,34819.0,34818.0,0.24057544]
[1625666294711,0.24057544,34823.0,34818.0,0.24057544]
[1625666294831,0.24057544,34823.0,34818.0,1.54598544]
[1625666295133,0.24057544,34823.0,34818.0,0.54598544]
[1625666296153,0.24057544,34826.0,34822.0,0.24057544]
[1625666298197,0.24057544,34823.0,34822.0,0.24057544]
[1625666300241,0.24057544,34823.0,34818.0,0.24057544]
[1625666301144,0.24057544,34823.0,34816.0,4.9302]
[1625666302107,0.24057544,34817.0,34816.0,4.9302]
[1625666306188,0.24057544,34817.0,34815.0,0.24057544]
[1625666306490,0.24057544,34817.0,34807.0,0.24057544]
[1625666308176,0.24057544,34812.0,34807.0,0.24057544]
[1625666309440,0.24057544,34812.0,34810.0,1.0]
[1625666309682,0.24057544,34812.0,34808.0,1.0]
[1625666309919,0.24057544,34812.0,34807.0,0.24057544]
[1625666310100,0.24057544,34812.0,34810.0,0.24057544]
[1625666316046,0.24057544,34812.0,34811.0,0.24541162]
[1625666316167,0.24057544,34812.0,34811.0,0.40750376]
[1625666316948,0.24057544,34812.0,34811.0,0.24541162]
[1625666317248,0.24057544,34812.0,34811.0,0.38861162]
[1625666317790,0.24057544,34812.0,34811.0,0.55069318]
[1625666318814,0.24057544,34812.0,34811.0,0.38861162]
[1625666320434,0.24057544,34812.0,34811.0,1.03672908]
[1625666321155,0.24057544,34812.0,34811.0,0.38861162]
[1625666321994,0.24057544,34812.0,34811.0,0.55067854]
[1625666322716,0.24057544,34812.0,34811.0,0.38861162]
[1625666322836,0.24057544,34812.0,34811.0,0.55070632]
[1625666325003,0.24057544,34812.0,34811.0,0.38861162]
[1625666325241,0.24057544,34812.0,34811.0,0.5508006]
[1625666325484,0.48115088,34817.0,34811.0,0.5508006]
[1625666325663,0.48115088,34817.0,34812.0,0.16213044]
[1625666325782,0.48115088,34817.0,34812.0,0.16696585]
[1625666326085,0.48115088,34817.0,34813.0,0.00483546]
[1625666326325,0.0131823,34816.0,34813.0,0.00483546]
[1625666326565,0.0131823,34816.0,34812.0,0.00483575]
[1625666327467,0.48115088,34817.0,34812.0,0.00483575]
[1625666327948,0.01318238,34816.0,34812.0,0.00483575]
[1625666328250,0.24057544,34813.0,34812.0,0.00483575]
[1625666330231,0.24057544,34813.0,34812.0,0.24541119]
[1625666331379,0.24057544,34813.0,34812.0,0.40779835]
[1625666331616,0.24057544,34813.0,34812.0,0.24541119]
[1625666332458,0.24057544,34813.0,34812.0,0.40783585]
[1625666334204,0.24057544,34813.0,34812.0,0.24541119]
[1625666335165,0.24057544,34813.0,34812.0,0.89525847]
[1625666335404,0.24057544,34813.0,34812.0,0.24541119]
[1625666335884,0.24057544,34813.0,34812.0,0.895229]
[1625666337568,0.24057544,34813.0,34812.0,1.87171878]
[1625666337808,0.24057544,34813.0,34812.0,0.895229]
[1625666338651,0.24057544,34813.0,34812.0,1.87244377]
[1625666342987,0.24057544,34813.0,34812.0,3.01578856]
[1625666344672,0.24057544,34813.0,34812.0,4.32455499]
[1625666346651,0.24057544,34813.0,34812.0,5.80052398]
[1625666347131,0.7479475,34813.0,34812.0,6.2925452]
[1625666347491,0.7479475,34813.0,34812.0,6.05196976]
[1625666347612,1.43758507,34813.0,34812.0,4.57600077]
[1625666347912,2.452235,34813.0,34812.0,4.57600077]
[1625666349053,3.63608013,34813.0,34812.0,4.57600077]
[1625666350015,3.63608013,34813.0,34812.0,3.26723434]
[1625666350556,3.63608013,34813.0,34812.0,1.26603434]
[1625666350796,4.98896324,34813.0,34812.0,1.26603434]
[1625666351157,4.98896324,34813.0,34812.0,0.49202122]
[1625666351818,4.98896324,34813.0,34812.0,2.122e-05]
[1625666352537,4.98896324,34813.0,34808.0,1.31547882]
[1625666352659,4.98896324,34813.0,34807.0,1.55650981]
[1625666352781,0.01320053,34812.0,34809.0,0.00483114]
[1625666352900,1.35268487,34810.0,34809.0,0.00483114]
[1625666353079,1.64604487,34810.0,34808.0,0.00483116]
[1625666354344,0.2531918,34809.0,34808.0,0.00483116]
[1625666354464,0.2531918,34809.0,34807.0,0.00483116]
[1625666354644,0.2531918,34809.0,34808.0,0.00483112]
[1625666355183,0.26639272,34809.0,34808.0,0.00483112]
[1625666355305,1.61882815,34809.0,34808.0,0.00483112]
[1625666355484,1.61882815,34809.0,34807.0,0.00483136]
[1625666355786,1.61882815,34809.0,34808.0,0.00483138]
[1625666356029,1.60562723,34809.0,34808.0,0.00483138]
[1625666356327,1.61882825,34809.0,34806.0,0.0048314]
[1625666356746,1.60562723,34809.0,34805.0,0.00483142]
[1625666356929,1.60562723,34809.0,34807.0,0.0048314]
[1625666357169,1.60562723,34809.0,34806.0,0.0048314]
[1625666357468,1.60562723,34809.0,34805.0,0.0048314]
[1625666357649,1.60562723,34809.0,34804.0,1.31618678]
[1625666357950,1.60562723,34809.0,34805.0,0.00483141]
[1625666359332,1.60562723,34809.0,34804.0,0.00483141]
[1625666359453,1.60562723,34809.0,34804.0,1.3209783]
[1625666359572,1.60562723,34809.0,34804.0,1.31614689]
[1625666359813,1.60562723,34809.0,34805.0,0.00483142]
[1625666360534,1.60562723,34809.0,34805.0,0.23837142]
[1625666360715,0.01261636,34809.0,34806.0,1.31474749]
[1625666360835,0.50700958,34807.0,34805.0,0.23354]
[1625666360954,0.50700958,34807.0,34806.0,0.00483097]
[1625666361074,0.50700958,34807.0,34806.0,1.31889389]
[1625666361977,0.50698621,34808.0,34806.0,1.31889389]
[1625666362220,0.50698621,34808.0,34807.0,0.00483062]
[1625666362400,0.50698621,34808.0,34807.0,0.24540606]
[1625666362760,0.50698621,34808.0,34807.0,1.55892722]
[1625666363300,0.50698621,34808.0,34807.0,1.64442722]
[1625666363662,0.50698621,34808.0,34807.0,1.55892722]
[1625666364325,0.33793451,34808.0,34807.0,1.55892722]
[1625666364561,0.01261636,34809.0,34807.0,1.55892722]
[1625666365041,0.01261636,34809.0,34808.0,0.00483079]
[1625666366124,0.01261636,34809.0,34807.0,1.5540966]